bitfinex/quotes_BTCUSD_20250901
["timestamp","ask_amount","ask_price","bid_price","bid_amount"]
[1756685779649,0.01071481,108240.0,108230.0,0.82387221]
[1756685781862,0.26071481,108240.0,108230.0,0.82387221]
[1756685783064,0.26071481,108240.0,108230.0,0.83425636]
[1756685784850,0.2607308,108240.0,108230.0,0.83425636]
[1756685786514,0.2607308,108240.0,108230.0,0.50111762]
[1756685786712,0.2607308,108240.0,108230.0,0.83425636]
[1756685788542,0.25213226,108240.0,108230.0,0.83425636]
[1756685788743,0.25213226,108240.0,108230.0,1.10145636]
[1756685788936,0.25213226,108240.0,108230.0,1.50145636]
[1756685789136,0.25213226,108240.0,108230.0,1.50045636]
[1756685789337,0.25013226,108240.0,108230.0,1.49945636]
[1756685789544,0.25013226,108240.0,108230.0,0.83425636]
[1756685789894,0.25113226,108240.0,108230.0,0.83725636]
[1756685790036,0.25113226,108240.0,108230.0,1.07905636]
[1756685790228,0.25113226,108240.0,108230.0,1.23717636]
[1756685790438,0.25113226,108240.0,108230.0,1.23517636]
[1756685790817,0.25113226,108240.0,108230.0,0.74098762]
[1756685791170,0.25113226,108240.0,108230.0,0.89910762]
[1756685791410,0.25113226,108240.0,108230.0,1.23224636]
[1756685791616,0.25113226,108240.0,108230.0,0.83224636]
[1756685791818,0.25113226,108240.0,108230.0,0.83424636]
[1756685791997,0.25113226,108240.0,108230.0,0.82386221]
[1756685793237,0.25113226,108240.0,108230.0,0.82687221]
[1756685794957,0.25113226,108240.0,108230.0,1.22687221]
[1756685795374,0.25609226,108240.0,108230.0,0.71054465]
[1756685795580,0.25609226,108240.0,108230.0,0.46862465]
[1756685795721,0.25609226,108240.0,108230.0,0.48956347]
[1756685795920,0.77400557,108240.0,108230.0,0.14669183]
[1756685796125,0.78260558,108240.0,108230.0,0.14669183]
[1756685796327,0.78260558,108240.0,108230.0,0.12575301]
[1756685796532,0.78260689,108240.0,108230.0,0.09798001]
[1756685797127,1.45574563,108240.0,108230.0,0.005]
[1756685797385,1.49920984,108240.0,108230.0,0.003]
[1756685797602,0.18480872,108220.0,108210.0,0.36380462]
[1756685797802,0.18480872,108220.0,108210.0,0.27780581]
[1756685798027,0.51996746,108220.0,108210.0,0.09298001]
[1756685798264,0.52290746,108220.0,108210.0,0.09298001]
[1756685798488,0.52290746,108220.0,108210.0,0.11391883]
[1756685798642,0.52290746,108220.0,108210.0,0.27780581]
[1756685798871,0.34780872,108220.0,108210.0,0.27780581]
[1756685799123,0.18976872,108220.0,108210.0,0.29874463]
[1756685799325,0.00496,108220.0,108210.0,0.29874463]
[1756685799526,0.00302,108220.0,108210.0,0.30172463]
[1756685799707,0.19076872,108220.0,108210.0,0.30272463]
[1756685799910,0.19076872,108220.0,108210.0,0.11591883]
[1756685800363,0.19076872,108220.0,108210.0,0.30074463]
[1756685800977,0.19076872,108220.0,108210.0,0.11591883]
[1756685800978,0.52390746,108220.0,108210.0,0.11591883]
[1756685801178,0.87250879,108220.0,108210.0,0.11591883]
[1756685802807,1.20564753,108220.0,108210.0,0.02293882]
[1756685802998,6.2292847,108220.0,108210.0,0.002]
[1756685803199,6.27686938,108220.0,108210.0,0.002]
[1756685803403,6.2570687,108220.0,108210.0,0.002]
[1756685803826,6.2560687,108220.0,108210.0,0.001]
[1756685804902,6.2496222,108220.0,108210.0,0.001]
[1756685805110,6.25806309,108220.0,108210.0,0.001]
[1756685805312,6.41610309,108220.0,108210.0,0.001]
[1756685805516,0.18484288,108200.0,108190.0,0.02093882]
[1756685805722,0.67602162,108200.0,108190.0,0.11391883]
[1756685805919,0.67804162,108200.0,108190.0,0.11391883]
[1756685806124,0.68098162,108200.0,108190.0,0.11391883]
[1756685806283,0.52294162,108200.0,108190.0,0.11391883]
[1756685806488,0.69151252,108200.0,108190.0,0.11391883]
[1756685806693,0.69264469,108200.0,108190.0,0.11591883]
[1756685807953,0.33923091,108200.0,108190.0,0.30506953]
[1756685808129,0.68211379,108200.0,108190.0,0.30275879]
[1756685808334,0.69262804,108200.0,108190.0,0.30275879]
[1756685808535,0.52407379,108200.0,108190.0,0.30275879]
[1756685808813,0.33427091,108200.0,108190.0,0.30275879]
[1756685808990,0.49231091,108200.0,108190.0,0.30275879]
[1756685809395,0.49231091,108200.0,108190.0,0.30576879]
[1756685809554,0.49231091,108200.0,108190.0,0.30275879]
[1756685811898,0.33427091,108200.0,108190.0,0.30275879]
[1756685812122,0.49231091,108200.0,108190.0,0.30275879]
[1756685812322,0.00113217,108200.0,108190.0,0.30275879]
[1756685812530,0.49231091,108200.0,108190.0,0.30275879]
[1756685812758,0.67925379,108200.0,108190.0,0.30077879]
[1756685812942,0.68225379,108200.0,108190.0,0.11591883]
[1756685816308,0.52421379,108200.0,108190.0,0.11591883]
[1756685816487,0.68221379,108200.0,108190.0,0.11591883]
[1756685817377,0.34907505,108200.0,108190.0,0.11591883]
[1756685817628,0.68221379,108200.0,108190.0,0.11591883]
[1756685818104,0.52421379,108200.0,108190.0,0.11591883]
[1756685818308,0.68221379,108200.0,108190.0,0.30077879]
[1756685818897,0.68221379,108200.0,108190.0,0.11591883]
[1756685819177,0.68221379,108200.0,108190.0,0.30077879]
[1756685819584,0.68221379,108200.0,108190.0,0.11591883]
[1756685820394,0.52421379,108200.0,108190.0,0.30077879]
[1756685820610,0.49227091,108200.0,108190.0,0.30288879]
[1756685820997,0.49227091,108200.0,108190.0,0.30605879]
[1756685821441,0.49227091,108200.0,108190.0,0.30288879]
[1756685821646,0.67921379,108200.0,108190.0,0.30288879]
[1756685821885,0.68221379,108200.0,108190.0,0.30288879]
[1756685822297,0.67921379,108200.0,108190.0,0.30288879]
[1756685823105,0.68221379,108200.0,108190.0,0.30288879]
[1756685823307,0.68221379,108200.0,108190.0,0.30077879]
[1756685824423,0.34907505,108200.0,108190.0,0.30077879]
[1756685824653,0.68221379,108200.0,108190.0,0.30077879]
[1756685825352,0.68221379,108200.0,108190.0,0.11591883]
[1756685826436,0.68221379,108200.0,108190.0,0.30077879]
[1756685827055,0.68221379,108200.0,108190.0,0.11591883]
[1756685828092,0.69082334,108200.0,108190.0,0.11591883]
[1756685828298,0.69082334,108200.0,108190.0,0.02293882]
[1756685828507,1.05450546,108200.0,108190.0,0.002]
[1756685828724,1.07434722,108200.0,108190.0,0.002]
[1756685828928,1.07434635,108200.0,108190.0,0.002]
[1756685829535,6.40748509,108200.0,108190.0,0.002]
[1756685829864,6.43226804,108200.0,108190.0,0.002]
[1756685830902,0.18487705,108180.0,108170.0,0.02093882]
[1756685831115,1.00911453,108180.0,108170.0,0.11391883]
[1756685831307,1.01421453,108180.0,108170.0,0.11391883]
[1756685831721,0.18490649,108170.0,108160.0,0.18491124]
[1756685831934,0.68110523,108170.0,108160.0,0.09298001]
[1756685832762,0.70477776,108170.0,108160.0,0.09298001]
[1756685832964,0.70477776,108170.0,108150.0,0.07713848]
[1756685832965,0.18491124,108160.0,108150.0,0.07713848]
[1756685833165,0.67336998,108160.0,108150.0,0.17011849]
[1756685833379,0.67846998,108160.0,108150.0,0.17011849]
[1756685833685,0.67846998,108160.0,108150.0,0.19105731]
[1756685833860,0.68876993,108160.0,108150.0,0.19105731]
[1756685834073,0.18441124,108160.0,108150.0,0.37809565]
[1756685834311,0.34283124,108160.0,108150.0,0.38174031]
[1756685834486,0.67596998,108160.0,108150.0,0.38174031]
[1756685834656,0.67596998,108160.0,108150.0,0.37857031]
[1756685834855,0.67696998,108160.0,108150.0,0.38157031]
[1756685835254,0.67696998,108160.0,108150.0,0.19664197]
[1756685835471,0.51904998,108160.0,108150.0,0.38157031]
[1756685835671,0.67696998,108160.0,108150.0,0.38257031]
[1756685837464,0.33413874,108160.0,108150.0,0.38257031]
[1756685837664,0.49209874,108160.0,108150.0,0.38257031]
[1756685837893,0.49209874,108160.0,108150.0,0.38574031]
[1756685838105,0.001,108160.0,108150.0,0.38574031]
[1756685838316,0.001,108160.0,108150.0,0.54370031]
[1756685845872,0.33413874,108160.0,108150.0,0.54370031]
[1756685846496,0.33413874,108160.0,108150.0,0.38574031]
[1756685846675,0.33413874,108160.0,108150.0,0.54366031]
[1756685847098,0.52421998,108160.0,108150.0,0.38046031]
[1756685847679,0.52421998,108160.0,108150.0,0.19553197]
[1756685850739,0.52421998,108160.0,108150.0,0.38046031]
[1756685850902,0.68213998,108160.0,108150.0,0.38046031]
[1756685851931,0.49420874,108160.0,108150.0,0.38251031]
[1756685852267,0.34598124,108160.0,108150.0,0.38251031]
[1756685852480,0.68213998,108160.0,108150.0,0.38251031]
[1756685854060,0.68213998,108160.0,108150.0,0.38046031]
[1756685854274,0.68213998,108160.0,108150.0,0.19553197]
[1756685854669,0.52421998,108160.0,108150.0,0.38251031]
[1756685854870,0.68213998,108160.0,108150.0,0.38251031]
[1756685855009,0.68213998,108160.0,108150.0,0.38046031]
[1756685855608,0.68213998,108160.0,108150.0,0.38251031]
[1756685855820,0.67911998,108160.0,108150.0,0.38251031]
[1756685856643,0.67696998,108160.0,108150.0,0.38251031]
[1756685856851,0.68213998,108160.0,108150.0,0.19553197]
[1756685857491,0.001,108160.0,108150.0,0.38251031]
[1756685857646,0.18591124,108160.0,108150.0,0.38251031]
[1756685857847,0.51904998,108160.0,108150.0,0.38251031]
[1756685859562,0.33413874,108160.0,108150.0,0.38251031]
[1756685859970,0.52119998,108160.0,108150.0,0.38251031]
[1756685860176,0.52421998,108160.0,108150.0,0.19553197]
[1756685862116,0.92847872,108160.0,108150.0,0.17459315]
[1756685862349,1.26847872,108160.0,108150.0,0.08161314]
[1756685862914,6.29216223,108160.0,108150.0,0.08161314]
[1756685863295,6.31200315,108160.0,108150.0,0.08161314]
[1756685863513,6.29215566,108160.0,108150.0,0.08161314]
[1756685863732,6.31199142,108160.0,108150.0,0.08161314]
[1756685864542,6.31198672,108160.0,108150.0,0.08061314]
[1756685864782,6.46890672,108160.0,108150.0,0.07761314]
[1756685864907,6.29115566,108160.0,108150.0,0.07961314]
[1756685865107,1.11047957,108160.0,108150.0,0.07961314]
[1756685865354,1.10947267,108160.0,108150.0,0.07761314]
[1756685865556,1.10947267,108160.0,108150.0,0.07961314]
[1756685865758,0.95255267,108160.0,108150.0,0.07961314]
[1756685866301,1.09325998,108160.0,108150.0,0.07961314]
[1756685866704,1.09325998,108160.0,108150.0,0.10055196]
[1756685866914,1.09023998,108160.0,108150.0,0.10260196]
[1756685867195,0.93016998,108160.0,108150.0,0.38051031]
[1756685867409,1.08808998,108160.0,108150.0,0.38051031]
[1756685868584,0.59016998,108160.0,108150.0,0.38051031]
[1756685868814,0.74808998,108160.0,108150.0,0.38051031]
[1756685869389,0.74808998,108160.0,108150.0,0.38362031]
[1756685869786,0.001,108160.0,108150.0,0.38051031]
[1756685869994,0.15892,108160.0,108150.0,0.38362031]
[1756685870373,0.49205874,108160.0,108150.0,0.38362031]
[1756685870806,0.001,108160.0,108150.0,0.38362031]
[1756685871012,0.001,108160.0,108150.0,0.54154031]
[1756685873335,0.001,108160.0,108150.0,0.90447205]
[1756685873747,0.001,108160.0,108150.0,0.41341331]
[1756685873954,0.33313874,108170.0,108160.0,0.20585006]
[1756685874149,0.33514874,108170.0,108160.0,0.30094007]
[1756685874354,0.33514874,108170.0,108160.0,0.29994007]
[1756685874791,0.33313874,108170.0,108160.0,0.29994007]
[1756685875316,0.6892151,108180.0,108170.0,0.18389414]
[1756685875524,0.5333051,108180.0,108170.0,0.27687415]
[1756685875737,0.6911851,108180.0,108170.0,0.27687415]
[1756685876315,0.5333051,108180.0,108170.0,0.27687415]
[1756685876531,1.02432384,108180.0,108170.0,0.27787415]
[1756685876722,1.02432384,108180.0,108170.0,0.09298001]
[1756685877277,1.02532384,108180.0,108170.0,0.09598001]
[1756685877842,1.02532384,108180.0,108170.0,0.28087415]
[1756685878805,1.02532384,108180.0,108170.0,0.09598001]
[1756685879642,1.02532384,108180.0,108170.0,0.11691883]
[1756685879833,1.09644384,108180.0,108170.0,0.11691883]
[1756685880151,1.09644384,108180.0,108170.0,0.02393882]
[1756685880152,1.43644384,108180.0,108170.0,0.02393882]
[1756685880365,6.4601648,108180.0,108170.0,0.003]
[1756685881910,6.4879608,108180.0,108170.0,0.003]
[1756685884184,6.3300808,108180.0,108170.0,0.003]
[1756685884400,6.27856384,108180.0,108170.0,0.003]
[1756685884606,1.1033051,108180.0,108170.0,0.00511]
[1756685884832,1.43644384,108180.0,108170.0,0.00511]
[1756685885196,0.9404251,108180.0,108170.0,0.11902883]
[1756685885418,0.76516636,108180.0,108170.0,0.30700297]
[1756685885598,1.0983051,108180.0,108170.0,0.30700297]
[1756685885797,1.0983051,108180.0,108170.0,0.11902883]
[1756685887052,0.33413874,108180.0,108170.0,0.30623414]
[1756685887258,0.67689579,108180.0,108170.0,0.30700297]
[1756685887661,0.001,108180.0,108170.0,0.30700297]
[1756685888840,0.001,108180.0,108170.0,0.46484297]
[1756685889045,0.001,108180.0,108170.0,0.47497894]
[1756685889935,0.49097874,108190.0,108180.0,0.20581587]
[1756685890096,0.49097874,108190.0,108180.0,0.30090588]
[1756685890309,0.49097874,108190.0,108180.0,0.30398588]
[1756685890515,0.15784,108190.0,108180.0,0.30398588]
[1756685891240,0.08152469,108200.0,108190.0,0.18385996]
[1756685891404,0.93308419,108210.0,108200.0,0.02093882]
[1756685891603,0.93308419,108210.0,108200.0,0.11391883]
[1756685891604,1.09293419,108210.0,108200.0,0.11391883]
[1756685892465,1.09306638,108210.0,108200.0,0.11391883]
[1756685892672,1.02095208,108210.0,108200.0,0.11391883]
[1756685893386,1.02095208,108210.0,108200.0,0.11291883]
[1756685893604,0.15998219,108210.0,108200.0,0.29987171]
[1756685893801,0.15797219,108210.0,108200.0,0.30295171]
[1756685894011,0.15897219,108210.0,108200.0,0.30495171]
[1756685894961,0.34879799,108210.0,108200.0,0.11491883]
[1756685895125,0.68193673,108210.0,108200.0,0.11491883]
[1756685895328,0.34879799,108210.0,108200.0,0.11491883]
[1756685895630,0.68193673,108210.0,108200.0,0.11491883]
[1756685895952,0.34879799,108210.0,108200.0,0.11491883]
[1756685896156,0.68193673,108210.0,108200.0,0.11491883]
[1756685899007,0.34879799,108210.0,108200.0,0.11491883]
[1756685899195,0.68193673,108210.0,108200.0,0.11491883]
[1756685905896,1.01507547,108210.0,108200.0,0.11491883]
[1756685906110,1.01507547,108210.0,108200.0,0.02193882]
[1756685906751,0.34871799,108210.0,108200.0,0.02397882]
[1756685906960,0.68185673,108210.0,108200.0,0.02193882]
[1756685907344,0.52409673,108210.0,108200.0,0.02193882]
[1756685907548,0.68185673,108210.0,108200.0,0.02193882]
[1756685908907,0.52409673,108210.0,108200.0,0.02193882]
[1756685909118,0.68181673,108210.0,108200.0,0.02193882]
[1756685910389,0.34867799,108210.0,108200.0,0.02193882]
[1756685910590,0.68181673,108210.0,108200.0,0.02193882]
[1756685912115,1.01495547,108210.0,108200.0,0.02193882]
[1756685913576,0.85723547,108210.0,108200.0,0.02193882]
[1756685913810,0.85424547,108210.0,108200.0,0.30180171]
[1756685914039,1.01196547,108210.0,108200.0,0.11695883]
[1756685914251,1.01196547,108210.0,108200.0,0.30180171]
[1756685914855,1.01510547,108210.0,108200.0,0.11695883]
[1756685915816,1.01510547,108210.0,108200.0,0.30180171]
[1756685916020,1.01510547,108210.0,108200.0,0.11695883]
[1756685916263,1.0237182,108210.0,108200.0,0.11491883]
[1756685917321,1.04095162,108210.0,108200.0,0.11491883]
[1756685918572,1.40727496,108210.0,108200.0,0.02193882]
[1756685918711,1.40727496,108210.0,108200.0,0.002]
[1756685918915,6.40727496,108210.0,108200.0,0.002]
[1756685919122,6.40727968,108210.0,108200.0,0.002]
[1756685919552,6.41114177,108210.0,108200.0,0.002]
[1756685919747,6.45582263,108210.0,108200.0,0.002]
[1756685920064,6.43099993,108210.0,108200.0,0.002]
[1756685921755,6.78896137,108210.0,108200.0,0.002]
[1756685921936,6.82188754,108210.0,108200.0,0.002]
[1756685922133,6.82186665,108210.0,108200.0,0.002]
[1756685922334,6.84487937,108210.0,108200.0,0.002]
[1756685922541,6.92062124,108210.0,108200.0,0.002]
[1756685922744,6.9378374,108210.0,108200.0,0.002]
[1756685923445,6.93782652,108210.0,108200.0,0.002]
[1756685923652,0.18487705,108180.0,108170.0,0.02093882]
[1756685923859,1.00883453,108180.0,108170.0,0.02093882]
[1756685924063,1.01409453,108180.0,108170.0,0.02297882]
[1756685924286,1.01409453,108180.0,108170.0,0.02093882]
[1756685925638,1.35409453,108180.0,108170.0,0.02093882]
[1756685925776,1.35409453,108180.0,108170.0,0.02193882]
[1756685926198,1.35509453,108180.0,108170.0,0.005]
[1756685927676,6.73559136,108180.0,108170.0,0.005]
[1756685927853,6.43025073,108180.0,108170.0,0.005]
[1756685928278,6.42380413,108180.0,108170.0,0.005]
[1756685928486,6.43024764,108180.0,108170.0,0.005]
[1756685928697,6.43024764,108180.0,108170.0,0.004]
[1756685928913,0.18491124,108160.0,108150.0,0.0980773]
[1756685929131,6.35412872,108160.0,108150.0,0.07713848]
[1756685929946,6.35512872,108160.0,108150.0,0.08113848]
[1756685930146,6.35512872,108160.0,108150.0,0.08161314]
[1756685930353,6.35512872,108160.0,108150.0,0.08261314]
[1756685930552,6.19744872,108160.0,108150.0,0.08261314]
[1756685930760,6.35512872,108160.0,108150.0,0.08261314]
[1756685931431,6.35516872,108160.0,108150.0,0.08261314]
[1756685931770,6.02198998,108160.0,108150.0,0.08467314]
[1756685931999,6.02198998,108160.0,108150.0,0.08261314]
[1756685932423,5.86116998,108160.0,108150.0,0.08467314]
[1756685932625,6.01884998,108160.0,108150.0,0.08467314]
[1756685932825,6.02190998,108160.0,108150.0,0.08467314]
[1756685934107,6.03213178,108160.0,108150.0,0.08467314]
[1756685934311,5.87445178,108160.0,108150.0,0.08261314]
[1756685934508,6.03217178,108160.0,108150.0,0.08261314]
[1756685935991,5.87445178,108160.0,108150.0,0.08261314]
[1756685936194,6.03213178,108160.0,108150.0,0.08261314]
[1756685936407,6.36527052,108160.0,108150.0,0.08261314]
[1756685937667,6.20759052,108160.0,108150.0,0.08261314]
[1756685937776,6.36527052,108160.0,108150.0,0.08261314]
[1756685939693,6.20759052,108160.0,108150.0,0.08261314]
[1756685939903,6.36527052,108160.0,108150.0,0.08261314]
[1756685940109,6.20759052,108160.0,108150.0,0.08261314]
[1756685940315,6.36527052,108160.0,108150.0,0.08261314]
[1756685940489,6.03213178,108160.0,108150.0,0.08467314]
[1756685942120,6.03213178,108160.0,108150.0,0.08261314]
[1756685942734,6.36527052,108160.0,108150.0,0.08261314]
[1756685943127,6.4991199,108160.0,108150.0,0.08261314]
[1756685943350,6.58469994,108160.0,108150.0,0.08261314]
[1756685943973,6.58469994,108160.0,108150.0,0.08161314]
[1756685944518,6.58569994,108160.0,108150.0,0.08161314]
[1756685945139,6.58469994,108160.0,108150.0,0.07761314]
[1756685945372,6.58569994,108160.0,108150.0,0.07961314]
[1756685945785,6.91883868,108160.0,108150.0,1e-08]
[1756685945995,0.57166202,108150.0,108140.0,0.00059926]
[1756685946206,6.93619422,108150.0,108140.0,0.00059926]
[1756685946428,6.94987043,108150.0,108140.0,0.00059926]
[1756685947248,6.45905169,108150.0,108140.0,0.00059926]
[1756685947470,6.43603897,108150.0,108140.0,0.00059926]
[1756685947679,6.44562467,108150.0,108140.0,0.00265926]
[1756685948091,6.44358467,108150.0,108140.0,0.00265926]
[1756685948294,6.44458467,108150.0,108140.0,0.00565926]
[1756685948472,6.46945456,108150.0,108140.0,0.00359926]
[1756685950343,6.47804052,108150.0,108140.0,0.00359926]
[1756685950927,6.50584452,108150.0,108140.0,0.00359926]
[1756685951323,6.50278452,108150.0,108140.0,0.00565926]
[1756685951516,6.50074452,108150.0,108140.0,0.00565926]
[1756685951717,6.49215856,108150.0,108140.0,0.00565926]
[1756685951929,6.49215856,108150.0,108140.0,0.30765353]
[1756685951930,0.79121582,108150.0,108140.0,0.30765353]
[1756685952100,0.76501549,108150.0,108140.0,0.30765353]
[1756685952296,0.61377922,108150.0,108140.0,0.30765353]
[1756685952538,0.49181874,108150.0,108140.0,0.30765353]
[1756685952738,0.15868,108150.0,108140.0,0.30765353]
[1756685953066,0.49181874,108150.0,108140.0,0.30765353]
[1756685953223,0.67674708,108150.0,108140.0,0.30765353]
[1756685953428,1.02911624,108150.0,108140.0,0.11957809]
[1756685953626,1.03217624,108150.0,108140.0,0.02453808]
[1756685953848,1.03556178,108150.0,108140.0,0.02453808]
[1756685954100,1.03352178,108150.0,108140.0,0.02659808]
[1756685954279,1.02707561,108150.0,108140.0,0.02659808]
[1756685954572,1.03352347,108150.0,108140.0,0.02659808]
[1756685955856,1.03862347,108150.0,108140.0,0.02453808]
[1756685956270,6.87586222,108150.0,108140.0,0.00359926]
[1756685956480,6.98573436,108150.0,108140.0,0.00359926]
[1756685956686,7.06114253,108150.0,108140.0,0.00359926]
[1756685956905,7.02821636,108150.0,108140.0,0.00359926]
[1756685957298,1.21494388,108140.0,108130.0,0.02263216]
[1756685957538,6.55370794,108140.0,108130.0,0.02263216]
[1756685957744,6.57876066,108140.0,108130.0,0.02263216]
[1756685958402,6.57976066,108140.0,108130.0,0.02663216]
[1756685958605,6.57976066,108140.0,108130.0,0.02763216]
[1756685959154,6.60452351,108140.0,108130.0,0.02763216]
[1756685960004,6.10478891,108140.0,108130.0,0.02763216]
[1756685960295,6.23870795,108140.0,108130.0,0.02763216]
[1756685961289,6.14266794,108140.0,108130.0,0.02967216]
[1756685961493,5.95200474,108140.0,108130.0,0.02967216]
[1756685961691,6.10964474,108140.0,108130.0,0.02967216]
[1756685961902,6.14571794,108140.0,108130.0,0.02763216]
[1756685962126,6.11269474,108140.0,108130.0,0.02763216]
[1756685962731,6.14571794,108140.0,108130.0,0.02763216]
[1756685963855,6.17352694,108140.0,108130.0,0.02763216]
[1756685964481,6.15847769,108140.0,108130.0,0.02763216]
[1756685964693,6.17351955,108140.0,108130.0,0.02763216]
[1756685965094,6.17351919,108140.0,108130.0,0.02763216]
[1756685967866,6.14049599,108140.0,108130.0,0.02763216]
[1756685968207,6.17352079,108140.0,108130.0,0.02763216]
[1756685971823,5.82632519,108140.0,108130.0,0.02763216]
[1756685972029,6.17352079,108140.0,108130.0,0.02763216]
[1756685974326,6.14049759,108140.0,108130.0,0.02763216]
[1756685975348,6.13191868,108140.0,108130.0,0.02763216]
[1756685975493,6.14052901,108140.0,108130.0,0.02763216]
[1756685976176,6.1405295,108140.0,108130.0,0.02763216]
[1756685978675,6.1405295,108140.0,108130.0,0.02967216]
[1756685978676,5.9828895,108140.0,108130.0,0.02967216]
[1756685978878,6.1405295,108140.0,108130.0,0.02763216]
[1756685979258,6.11576665,108140.0,108130.0,0.02763216]
[1756685979461,6.1405295,108140.0,108130.0,0.02763216]
[1756685980065,6.11576665,108140.0,108130.0,0.02763216]
[1756685980495,5.60788105,108140.0,108130.0,0.02967216]
[1756685980772,6.11572665,108140.0,108130.0,0.02763216]
[1756685980980,5.95812665,108140.0,108130.0,0.02763216]
[1756685981182,6.11063665,108140.0,108130.0,0.02967216]
[1756685981390,6.10203274,108140.0,108130.0,0.02967216]
[1756685981562,6.10203274,108140.0,108130.0,0.03279216]
[1756685981791,5.94443274,108140.0,108130.0,0.03279216]
[1756685982060,6.0403409,108140.0,108130.0,0.03279216]
[1756685982260,6.03388797,108140.0,108130.0,0.03279216]
[1756685982596,6.04034256,108140.0,108130.0,0.03279216]
[1756685983122,6.03388797,108140.0,108130.0,0.03279216]
[1756685983321,6.040344,108140.0,108130.0,0.03279216]
[1756685983955,6.03388797,108140.0,108130.0,0.03279216]
[1756685984387,6.04034597,108140.0,108130.0,0.03279216]
[1756685984763,6.03388797,108140.0,108130.0,0.02967216]
[1756685984967,6.03899797,108140.0,108130.0,0.02967216]
[1756685985367,6.04545922,108140.0,108130.0,0.02967216]
[1756685986013,6.0252004,108140.0,108130.0,0.02957216]
[1756685986234,6.06228906,108140.0,108130.0,0.02957216]
[1756685986653,6.06023217,108140.0,108130.0,0.02957216]
[1756685986875,6.06023217,108140.0,108130.0,0.03269216]
[1756685987212,5.88277352,108140.0,108130.0,0.05363098]
[1756685987337,1.01667915,108140.0,108130.0,0.05363098]
[1756685987790,0.85907915,108140.0,108130.0,0.05363098]
[1756685987996,0.34354544,108140.0,108130.0,0.33388556]
[1756685988204,0.34354544,108140.0,108130.0,0.33157353]
[1756685988606,0.34354544,108140.0,108130.0,0.14661099]
[1756685988607,0.67667915,108140.0,108130.0,0.14661099]
[1756685992548,0.67667915,108140.0,108130.0,0.14349099]
[1756685992769,0.68170915,108140.0,108130.0,0.05051098]
[1756685993287,0.68170915,108140.0,108130.0,0.04847098]
[1756685993671,0.34553544,108140.0,108130.0,0.05053098]
[1756685993864,0.18594544,108140.0,108130.0,0.05053098]
[1756685994046,0.67862915,108140.0,108130.0,0.05053098]
[1756685994656,0.68166915,108140.0,108130.0,0.05053098]
[1756685995121,0.68166915,108140.0,108130.0,0.04847098]
[1756685995460,0.67862915,108140.0,108130.0,0.05053098]
[1756685996011,0.34350544,108140.0,108130.0,0.05053098]
[1756685996215,0.34350544,108140.0,108130.0,0.04847098]
[1756685996216,0.68166915,108140.0,108130.0,0.04847098]
[1756685996809,0.34350544,108140.0,108130.0,0.05053098]
[1756685997014,0.67862915,108140.0,108130.0,0.05053098]
[1756685997416,0.68166915,108140.0,108130.0,0.05053098]
[1756685997827,0.67862915,108140.0,108130.0,0.05053098]
[1756685998031,0.52106915,108140.0,108130.0,0.05053098]
[1756685998240,0.51907915,108140.0,108130.0,0.05053098]
[1756685998447,0.67663915,108140.0,108130.0,0.05053098]
[1756686000576,0.34350544,108140.0,108130.0,0.05053098]
[1756686000814,0.51907915,108140.0,108130.0,0.23549352]
[1756686001028,0.15856,108140.0,108130.0,0.33170353]
[1756686001226,0.001,108140.0,108130.0,0.33170353]
[1756686001488,0.34350544,108140.0,108130.0,0.33170353]
[1756686002022,0.001,108140.0,108130.0,0.33170353]
[1756686002882,0.001,108140.0,108130.0,0.66483724]
[1756686003528,0.001,108140.0,108130.0,0.33170353]
[1756686003712,0.3531704,108160.0,108130.0,0.67008536]
[1756686003713,0.68630411,108160.0,108130.0,0.67008536]
[1756686003951,0.3531704,108160.0,108150.0,0.18492834]
[1756686004167,0.68630411,108160.0,108150.0,0.27996835]
[1756686004958,0.68829411,108160.0,108150.0,0.27996835]
[1756686005160,0.3551604,108160.0,108150.0,0.27996835]
[1756686005366,0.69133411,108160.0,108150.0,0.27996835]
[1756686005560,0.68730411,108160.0,108150.0,0.28496835]
[1756686005767,0.68929411,108160.0,108150.0,0.10004001]
[1756686005970,0.68929411,108160.0,108150.0,0.28496835]
[1756686006803,0.68929411,108160.0,108150.0,0.10004001]
[1756686007048,0.69233411,108160.0,108150.0,0.09798001]
[1756686007286,0.69233411,108160.0,108150.0,0.11891883]
[1756686009185,1.03233411,108160.0,108150.0,0.005]
[1756686010100,1.03233411,108160.0,108150.0,0.004]
[1756686010532,1.03333411,108160.0,108150.0,0.004]
[1756686010802,6.41386035,108160.0,108150.0,0.004]
[1756686011066,0.18494544,108140.0,108130.0,0.02253216]
[1756686011277,0.67559915,108140.0,108130.0,0.02253216]
[1756686011703,0.68062915,108140.0,108130.0,0.02253216]
[1756686012297,1.02062915,108140.0,108130.0,0.02253216]
[1756686012507,6.02062915,108140.0,108130.0,0.02253216]
[1756686012718,6.06802784,108140.0,108130.0,0.02253216]
[1756686012935,5.93134515,108140.0,108130.0,0.02453216]
[1756686013147,5.75573144,108140.0,108130.0,0.02453216]
[1756686013354,6.06514419,108140.0,108130.0,0.02453216]
[1756686013967,6.06514419,108140.0,108130.0,0.02553216]
[1756686014184,6.02162915,108140.0,108130.0,0.02553216]
[1756686014616,5.86410915,108140.0,108130.0,0.02553216]
[1756686014851,6.02162915,108140.0,108130.0,0.02759216]
[1756686015067,6.02162915,108140.0,108130.0,0.02553216]
[1756686015902,5.86410915,108140.0,108130.0,0.02553216]
[1756686016094,0.86106915,108140.0,108130.0,0.02759216]
[1756686016510,1.01858915,108140.0,108130.0,0.02759216]
[1756686016735,1.02162915,108140.0,108130.0,0.02759216]
[1756686016954,1.02162915,108140.0,108130.0,0.02553216]
[1756686017596,0.68849544,108140.0,108130.0,0.02553216]
[1756686017805,1.02162915,108140.0,108130.0,0.02553216]
[1756686018227,1.02162915,108140.0,108130.0,0.02759216]
[1756686018473,1.02162915,108140.0,108130.0,0.02553216]
[1756686018839,1.02162915,108140.0,108130.0,0.02759216]
[1756686019862,1.02162915,108140.0,108130.0,0.02553216]
[1756686020320,1.02162915,108140.0,108130.0,0.02553131]
[1756686022944,6.02162915,108140.0,108130.0,0.02553131]
[1756686023122,1.02162915,108140.0,108130.0,0.02762131]
[1756686023504,0.86410915,108140.0,108130.0,0.02762131]
[1756686023856,1.02162915,108140.0,108130.0,0.14154014]
[1756686024442,0.52594544,108140.0,108130.0,0.14474014]
[1756686024657,1.01659915,108140.0,108130.0,0.14474014]
[1756686024866,0.001,108140.0,108130.0,0.32970268]
[1756686025029,0.34346544,108140.0,108130.0,0.32970268]
[1756686025534,0.34346544,108140.0,108130.0,0.14474014]
[1756686025750,0.67659915,108140.0,108130.0,0.14154014]
[1756686025922,0.67659915,108140.0,108130.0,0.33201471]
[1756686026178,0.51907915,108140.0,108130.0,0.32970268]
[1756686026576,0.15852,108140.0,108130.0,0.32970268]
[1756686026777,0.34346544,108140.0,108130.0,0.32970268]
[1756686028897,0.68178915,108140.0,108130.0,0.14154014]
[1756686029055,0.34346544,108140.0,108130.0,0.14385217]